bitfinex/quotes_BTCUSD_20241010
["timestamp","ask_amount","ask_price","bid_price","bid_amount"]
[1728580476360,0.17089549,60274.0,60273.0,0.16]
[1728580476576,0.17471489,60274.0,60273.0,0.16]
[1728580476841,0.34055253,60274.0,60273.0,0.16]
[1728580477054,0.33673313,60274.0,60273.0,0.16]
[1728580477499,0.33673313,60274.0,60273.0,0.161]
[1728580477944,0.64551638,60274.0,60273.0,0.16]
[1728580478393,0.64751638,60274.0,60273.0,0.161]
[1728580478832,0.36173313,60274.0,60273.0,0.161]
[1728580479537,0.36073313,60274.0,60273.0,0.161]
[1728580479733,0.36273313,60274.0,60273.0,0.162]
[1728580480170,0.64851638,60274.0,60273.0,0.162]
[1728580482839,0.36273313,60274.0,60273.0,0.162]
[1728580483268,0.33473313,60274.0,60273.0,0.162]
[1728580484835,0.36273313,60274.0,60273.0,0.162]
[1728580485731,0.46273313,60274.0,60273.0,0.162]
[1728580488546,0.65350006,60274.0,60273.0,0.162]
[1728580489240,0.65850006,60274.0,60273.0,0.162]
[1728580489480,0.65850006,60274.0,60273.0,0.0183]
[1728580490149,0.65350006,60274.0,60273.0,0.0183]
[1728580490374,0.65350006,60274.0,60273.0,0.0163]
[1728580490375,0.43673313,60274.0,60273.0,0.0163]
[1728580490629,0.43773313,60274.0,60273.0,0.0173]
[1728580490912,0.43973313,60274.0,60273.0,0.0183]
[1728580491168,0.44054813,60274.0,60273.0,0.0183]
[1728580491423,0.43954813,60274.0,60273.0,0.0173]
[1728580492175,0.46054813,60274.0,60273.0,0.0163]
[1728580492611,0.47354813,60274.0,60273.0,0.0173]
[1728580492862,0.48754813,60274.0,60273.0,0.0173]
[1728580493101,0.47454813,60274.0,60273.0,0.0163]
[1728580493337,0.48854813,60274.0,60273.0,0.0163]
[1728580497412,0.30389749,60273.0,60272.0,1e-06]
[1728580497630,0.46855453,60273.0,60272.0,1e-06]
[1728580497873,0.45973513,60273.0,60272.0,1e-06]
[1728580498095,0.46473513,60273.0,60272.0,1e-06]
[1728580498305,0.51375334,60273.0,60272.0,1e-06]
[1728580498540,0.46473513,60273.0,60272.0,1e-06]
[1728580498767,0.47773513,60273.0,60272.0,0.001001]
[1728580499918,0.49173513,60273.0,60272.0,0.002001]
[1728580500368,0.48673513,60273.0,60272.0,0.002001]
[1728580501284,0.36373513,60273.0,60272.0,0.002001]
[1728580502159,0.36320567,60273.0,60272.0,0.002001]
[1728580502377,0.35020567,60273.0,60272.0,0.001001]
[1728580502595,0.45920567,60273.0,60272.0,1e-06]
[1728580502809,0.47320567,60273.0,60272.0,0.001001]
[1728580503018,0.47320567,60273.0,60272.0,0.002001]
[1728580503019,0.48720567,60273.0,60272.0,0.002001]
[1728580503698,0.47320567,60273.0,60272.0,0.001001]
[1728580504633,0.18436803,60273.0,60272.0,0.001001]
[1728580504859,0.18818743,60273.0,60272.0,0.001001]
[1728580505082,0.36302507,60273.0,60272.0,0.002001]
[1728580505311,0.35920567,60273.0,60272.0,0.002001]
[1728580505756,0.34520567,60273.0,60272.0,0.001001]
[1728580505977,0.36020567,60273.0,60272.0,0.001001]
[1728580506188,0.46520567,60273.0,60272.0,0.001001]
[1728580506896,0.47120567,60273.0,60272.0,0.002001]
[1728580507113,0.46520567,60273.0,60272.0,0.001001]
[1728580507378,0.46020567,60273.0,60272.0,0.001001]
[1728580507625,0.47420567,60273.0,60272.0,0.001001]
[1728580507844,0.47320567,60273.0,60272.0,0.001001]
[1728580509385,0.48320567,60273.0,60272.0,0.002001]
[1728580510046,0.48320567,60273.0,60272.0,0.001001]
[1728580510047,0.47320567,60273.0,60272.0,0.001001]
[1728580510515,0.48720567,60273.0,60272.0,0.002001]
[1728580510734,0.61991397,60273.0,60272.0,0.002001]
[1728580512544,0.66893555,60273.0,60272.0,0.002001]
[1728580512972,0.53741397,60273.0,60272.0,0.002001]
[1728580514556,0.53822897,60273.0,60272.0,0.002001]
[1728580515270,0.00998649,60270.0,60269.0,0.0005]
[1728580515504,0.65433046,60270.0,60269.0,0.0005]
[1728580515750,0.19893949,60258.0,60257.0,0.24894819]
[1728580515966,0.19893949,60258.0,60248.0,0.001632]
[1728580515967,0.29896149,60250.0,60248.0,0.001632]
[1728580516190,0.65438546,60250.0,60248.0,0.001632]
[1728580516442,0.29896349,60249.0,60248.0,0.001632]
[1728580516681,0.29896349,60249.0,60242.0,0.24894819]
[1728580516682,0.17597249,60246.0,60242.0,0.24894819]
[1728580516904,0.49355882,60246.0,60242.0,0.24894819]
[1728580517157,0.48973942,60246.0,60242.0,0.24894819]
[1728580517375,0.19399649,60237.0,60236.0,0.1859]
[1728580517598,0.54942046,60237.0,60236.0,0.1859]
[1728580517822,0.54942046,60237.0,60228.0,0.24894819]
[1728580517823,0.29899949,60236.0,60228.0,0.24894819]
[1728580518052,0.17101849,60229.0,60228.0,0.24894819]
[1728580518273,0.52262306,60229.0,60228.0,0.24894819]
[1728580518494,0.33185613,60229.0,60228.0,0.24894819]
[1728580518715,0.166038,60227.0,60226.0,0.1898]
[1728580518955,0.33568153,60227.0,60226.0,0.1898]
[1728580519193,0.33186213,60227.0,60226.0,0.1898]
[1728580519435,0.18882413,60227.0,60215.0,0.2748]
[1728580519659,0.17105449,60216.0,60215.0,0.2748]
[1728580521476,0.17105449,60216.0,60213.0,0.001632]
[1728580521477,0.17106049,60214.0,60213.0,0.001632]
[1728580521699,0.35871753,60214.0,60213.0,0.001632]
[1728580521946,0.35489813,60214.0,60213.0,0.001632]
[1728580523059,0.35789813,60214.0,60213.0,0.001632]
[1728580523760,0.36089813,60214.0,60213.0,0.001632]
[1728580524002,0.46089813,60214.0,60213.0,0.001632]
[1728580524264,0.01098649,60214.0,60213.0,0.001632]
[1728580524458,0.006,60214.0,60213.0,0.44083031]
[1728580524663,0.332031,60236.0,60221.0,0.1849]
[1728580524664,0.00498649,60223.0,60221.0,0.1849]
[1728580524879,0.00498649,60223.0,60222.0,0.168052]
[1728580525092,0.00498649,60222.0,60221.0,0.1849]
[1728580525531,0.00498649,60222.0,60221.0,0.7349651]
[1728580525744,0.00498649,60223.0,60222.0,0.166052]
[1728580525961,0.00498649,60224.0,60223.0,0.168049]
[1728580526163,0.00498649,60224.0,60221.0,0.1849]
[1728580526373,0.49287264,60235.0,60221.0,0.1849]
[1728580526374,0.00498649,60223.0,60222.0,0.166052]
[1728580526641,0.00498649,60223.0,60221.0,0.1849]
[1728580526886,0.00498649,60223.0,60222.0,0.166052]
[1728580527107,0.00498649,60225.0,60224.0,0.168046]
[1728580527324,0.332031,60236.0,60225.0,0.168044]
[1728580527325,0.00498649,60226.0,60225.0,0.168044]
[1728580527779,0.00498649,60227.0,60226.0,0.247341]
[1728580528029,0.00498649,60227.0,60226.0,0.0793]
[1728580529123,0.17102449,60227.0,60226.0,0.0793]
[1728580530213,0.00498649,60227.0,60226.0,0.0793]
[1728580530452,0.00498649,60227.0,60226.0,0.0823]
[1728580530678,0.17102449,60227.0,60226.0,0.0823]
[1728580530899,0.33568153,60227.0,60226.0,0.003]
[1728580531120,0.33186213,60227.0,60226.0,0.003]
[1728580531333,0.35486213,60227.0,60226.0,0.003]
[1728580531795,0.35486213,60227.0,60226.0,0.006]
[1728580532447,0.64135732,60227.0,60226.0,0.006]
[1728580533157,0.64135732,60227.0,60226.0,0.003]
[1728580533393,0.17103849,60222.0,60221.0,0.1849]
[1728580533602,0.33569553,60222.0,60221.0,0.1849]
[1728580533826,0.33187613,60222.0,60221.0,0.1849]
[1728580534077,0.166068,60216.0,60215.0,0.076]
[1728580534321,0.17105449,60216.0,60215.0,0.076]
[1728580534525,0.17106049,60214.0,60213.0,0.001632]
[1728580534754,0.17487989,60214.0,60213.0,0.001632]
[1728580535458,0.35871753,60214.0,60213.0,0.001632]
[1728580535680,0.35489813,60214.0,60213.0,0.001632]
[1728580536823,0.35689813,60214.0,60213.0,0.001632]
[1728580537110,0.35589813,60214.0,60213.0,0.001632]
[1728580537332,0.35789813,60214.0,60213.0,0.001632]
[1728580537560,0.36089813,60214.0,60213.0,0.001632]
[1728580537788,0.17706049,60214.0,60213.0,0.001632]
[1728580538032,0.18087989,60214.0,60213.0,0.001632]
[1728580539879,0.17487989,60214.0,60213.0,0.001632]
[1728580540102,0.17687989,60214.0,60213.0,0.001632]
[1728580540327,0.17887989,60214.0,60213.0,0.001632]
[1728580551552,0.53073994,60214.0,60213.0,0.001632]
[1728580551795,0.52773754,60214.0,60213.0,0.001632]
[1728580552544,0.55073754,60214.0,60213.0,0.001632]
[1728580552866,0.35971513,60214.0,60213.0,0.001632]
[1728580553332,0.17587749,60214.0,60213.0,0.001632]
[1728580562554,0.35971513,60214.0,60213.0,0.001632]
[1728580562759,0.46471513,60214.0,60213.0,0.001632]
[1728580563667,0.46271513,60214.0,60213.0,0.001632]
[1728580563907,0.51091286,60214.0,60213.0,0.001632]
[1728580564128,0.52191286,60214.0,60213.0,0.001632]
[1728580564356,0.58296076,60214.0,60213.0,0.001632]
[1728580564579,0.17606549,60212.0,60211.0,0.001632]
[1728580564800,0.90828405,60212.0,60211.0,0.001632]
[1728580565022,0.79661338,60212.0,60211.0,0.001632]
[1728580565257,0.79661338,60212.0,60202.0,0.24894819]
[1728580565258,0.55760301,60203.0,60202.0,0.24894819]
[1728580565518,0.74144065,60203.0,60202.0,0.24894819]
[1728580565733,0.74644065,60203.0,60202.0,0.24894819]
[1728580565945,0.29409849,60200.0,60199.0,0.001632]
[1728580566167,0.45875553,60200.0,60199.0,0.001632]
[1728580566378,0.45493613,60200.0,60199.0,0.001632]
[1728580568157,0.46393613,60200.0,60199.0,0.001632]
[1728580568373,0.46893613,60200.0,60199.0,0.001632]
[1728580568596,0.47693613,60200.0,60199.0,0.001632]
[1728580569967,0.47193613,60200.0,60199.0,0.001632]
[1728580570402,0.44893613,60200.0,60199.0,0.001632]
[1728580570876,0.18809849,60200.0,60199.0,0.001632]
[1728580571101,0.19191789,60200.0,60199.0,0.190232]
[1728580571322,0.02198649,60200.0,60199.0,0.190232]
[1728580571559,0.18809849,60200.0,60199.0,0.190232]
[1728580572700,0.02198649,60200.0,60199.0,0.190232]
[1728580572953,0.18809849,60200.0,60199.0,0.190232]
[1728580573164,0.02198649,60200.0,60199.0,0.190232]
[1728580573395,0.18809849,60200.0,60199.0,0.190232]
[1728580573614,0.34893613,60200.0,60199.0,0.190232]
[1728580574041,0.17909849,60200.0,60199.0,0.190232]
[1728580574283,0.18209849,60200.0,60199.0,0.190232]
[1728580574497,0.17409849,60200.0,60199.0,0.190232]
[1728580574930,0.18209849,60200.0,60199.0,0.190232]
[1728580575358,0.17409849,60200.0,60199.0,0.190232]
[1728580575589,0.17709849,60200.0,60199.0,0.190232]
[1728580575805,0.01098649,60200.0,60199.0,0.190232]
[1728580576022,0.17709849,60200.0,60199.0,0.190232]
[1728580576665,0.01098649,60200.0,60199.0,0.190232]
[1728580576877,0.17709849,60200.0,60199.0,0.190232]
[1728580577108,0.006,60200.0,60199.0,0.356347]
[1728580577340,0.006,60200.0,60199.0,0.431547]
[1728580577557,0.00498649,60209.0,60208.0,0.16609]
[1728580578261,0.00498649,60209.0,60208.0,0.332181]
[1728580578483,0.00498649,60209.0,60208.0,0.16609]
[1728580578702,0.00580349,60214.0,60211.0,0.334163]
[1728580578932,0.00580349,60214.0,60213.0,0.241877]
[1728580579371,0.00580349,60214.0,60213.0,0.0758]
[1728580579372,0.17187749,60214.0,60213.0,0.0758]
[1728580579599,0.17187749,60214.0,60207.0,0.1857]
[1728580579600,0.16609,60208.0,60207.0,0.1857]
[1728580580326,0.00498649,60209.0,60208.0,0.16609]
[1728580580543,0.00498649,60209.0,60208.0,0.16809]
[1728580580785,0.00498649,60209.0,60208.0,0.005]
[1728580580786,0.17107449,60209.0,60208.0,0.005]
[1728580581011,0.17107449,60209.0,60208.0,0.002]
[1728580581217,0.17107449,60209.0,60208.0,0.01291962]
[1728580581642,0.17107449,60209.0,60208.0,0.01091962]
[1728580582108,0.00498649,60209.0,60208.0,0.01091962]
[1728580582344,0.17107449,60209.0,60208.0,0.01091962]
[1728580582576,0.17107449,60209.0,60208.0,0.01391962]
[1728580582839,0.17107449,60209.0,60208.0,0.01591962]
[1728580583070,0.00498649,60209.0,60208.0,0.18200962]
[1728580583288,0.166892,60214.0,60209.0,0.166088]
[1728580583289,0.00498649,60210.0,60209.0,0.166088]
[1728580583721,0.00498649,60212.0,60210.0,0.332166]
[1728580583937,0.000817,60214.0,60213.0,0.166077]
[1728580584428,0.000817,60214.0,60213.0,0.25071046]
[1728580584666,0.000817,60214.0,60213.0,0.43491953]
[1728580584895,0.000817,60214.0,60213.0,0.432877]
[1728580585340,0.24894819,60226.0,60225.0,0.1977]
[1728580585556,0.24894819,60226.0,60225.0,0.363744]
[1728580585781,0.000817,60227.0,60226.0,0.168041]
[1728580586022,0.000817,60227.0,60226.0,0.166041]
[1728580586484,0.000817,60227.0,60226.0,0.168041]
[1728580586698,0.000817,60227.0,60226.0,0.75477984]
[1728580586919,0.4776,60248.0,60239.0,0.434505]
[1728580586920,0.25393468,60240.0,60239.0,0.434505]
[1728580587145,0.25393468,60240.0,60239.0,0.2685]
[1728580587270,0.00498649,60240.0,60239.0,0.2685]
[1728580587692,0.00498649,60240.0,60239.0,0.434503]
[1728580587899,0.000816,60245.0,60244.0,0.167991]
[1728580588116,0.00580249,60245.0,60244.0,0.167991]
[1728580588344,0.000816,60245.0,60244.0,0.167991]
[1728580589535,0.000816,60245.0,60244.0,0.58762864]
[1728580589749,0.000816,60245.0,60244.0,0.74843525]
[1728580589978,0.24894819,60259.0,60244.0,0.74843525]
[1728580589979,0.24894819,60259.0,60255.0,0.1933]
[1728580590202,0.24894819,60259.0,60258.0,0.002]
[1728580590450,0.24894819,60259.0,60256.0,0.0814]
[1728580590451,0.165953,60258.0,60256.0,0.0814]
[1728580590671,0.165955,60257.0,60256.0,0.0814]
[1728580591585,0.00498649,60259.0,60256.0,0.0814]
[1728580591817,0.00880589,60263.0,60257.0,0.3925737]
[1728580592033,0.00880589,60263.0,60258.0,0.165951]
[1728580592250,0.17474689,60263.0,60258.0,0.165951]
[1728580592464,0.165945,60261.0,60257.0,0.165954]
[1728580592689,0.17094149,60257.0,60256.0,0.001]
[1728580592916,0.35477913,60257.0,60256.0,0.001]
[1728580593154,0.35477913,60257.0,60246.0,0.2046007]
[1728580593155,0.16598,60248.0,60246.0,0.1892]
[1728580593382,0.00498649,60249.0,60246.0,0.1892]
[1728580593636,0.00498649,60249.0,60246.0,0.521171]
[1728580593866,0.00498649,60249.0,60248.0,0.16598]
[1728580594090,0.00498649,60251.0,60246.0,0.1892]
[1728580594314,0.00498649,60251.0,60247.0,0.165982]
[1728580594540,0.00498649,60249.0,60247.0,0.165982]
[1728580594760,0.00498649,60249.0,60248.0,0.16598]
[1728580595043,0.00498649,60249.0,60247.0,0.165982]
[1728580595266,0.00498649,60250.0,60248.0,0.16598]
[1728580595497,0.00498649,60249.0,60246.0,0.1892]
[1728580595714,0.165975,60250.0,60247.0,0.004]
[1728580595927,0.16598,60248.0,60247.0,0.004]
[1728580596162,0.00880589,60249.0,60247.0,0.004]
[1728580596399,0.00498649,60249.0,60247.0,0.004]
[1728580596611,0.00498649,60249.0,60246.0,0.1892]
[1728580596822,0.331915,60257.0,60246.0,0.1892]
[1728580596823,0.00498649,60255.0,60249.0,0.331954]
[1728580597053,0.00498649,60252.0,60250.0,0.165973]
[1728580597268,0.00498649,60252.0,60249.0,0.331954]
[1728580597269,0.00498649,60252.0,60251.0,0.165972]
[1728580597519,0.331897,60260.0,60249.0,0.002]
[1728580597520,0.00498649,60254.0,60249.0,0.002]
[1728580597748,0.25394819,60267.0,60249.0,0.002]
[1728580597749,0.00498649,60261.0,60251.0,0.24894819]
[1728580597971,0.00498649,60261.0,60256.0,0.002]
[1728580598200,0.00498649,60265.0,60262.0,0.002]
[1728580598419,0.00498649,60264.0,60263.0,0.165937]
[1728580598634,0.331849,60269.0,60263.0,0.165937]
[1728580598635,0.165935,60265.0,60263.0,0.00425239]
[1728580598877,0.33686249,60264.0,60263.0,0.00676188]
[1728580599098,0.33686249,60264.0,60257.0,0.1938]
[1728580599099,0.00498649,60262.0,60261.0,0.165942]
[1728580599314,0.49349264,60271.0,60261.0,0.165942]
[1728580599315,0.00498649,60266.0,60262.0,0.331882]
[1728580599528,0.00498649,60267.0,60266.0,0.165931]
[1728580599950,0.00498649,60267.0,60266.0,0.17890553]
[1728580600179,0.00498649,60267.0,60266.0,0.17690553]
[1728580600607,0.00498649,60268.0,60267.0,0.165928]
[1728580600822,0.166724,60274.0,60266.0,0.01097453]
[1728580600823,0.33026129,60274.0,60266.0,0.01097453]
[1728580601042,0.165918,60271.0,60267.0,0.165927]
[1728580601259,0.165928,60267.0,60266.0,0.01097453]
[1728580601486,0.331844,60270.0,60266.0,0.01097453]
[1728580601705,0.165928,60267.0,60266.0,0.00451353]
[1728580601930,0.165928,60267.0,60265.0,0.0753]
[1728580602385,0.165928,60267.0,60266.0,0.004]
[1728580603098,0.165931,60266.0,60265.0,0.004]
[1728580603319,0.331833,60272.0,60265.0,0.008]
[1728580603533,0.165927,60268.0,60265.0,0.004]
[1728580603743,0.0038194,60271.0,60268.0,0.165924]
[1728580604092,0.0038194,60271.0,60269.0,0.165922]
[1728580604304,0.165915,60272.0,60269.0,0.165921]
[1728580604505,0.0038194,60273.0,60269.0,0.165922]
[1728580604710,0.0038194,60273.0,60269.0,0.33291199]
[1728580604918,0.0038194,60273.0,60269.0,0.0839638]
[1728580605134,0.0038194,60273.0,60270.0,0.165918]
[1728580605354,0.0038194,60273.0,60271.0,0.165916]
[1728580605560,0.0038194,60273.0,60269.0,0.25094819]
[1728580605561,0.331995,60279.0,60273.0,0.002]
[1728580605777,0.331995,60279.0,60274.0,0.165909]
[1728580605991,0.0002,60279.0,60274.0,0.165909]
[1728580606206,0.0002,60279.0,60274.0,0.16922682]
[1728580606417,0.0002,60279.0,60274.0,0.34543052]
[1728580606644,0.0002,60279.0,60274.0,0.5252127]
[1728580606865,0.0002,60279.0,60274.0,0.5272127]
[1728580607332,0.005816,60275.0,60274.0,0.5272127]
[1728580607551,0.005816,60275.0,60274.0,0.52721722]
[1728580607998,0.010816,60275.0,60274.0,0.52721722]
[1728580608244,0.005816,60275.0,60274.0,0.52721722]
[1728580608482,0.006816,60275.0,60274.0,0.53621722]
[1728580608730,0.006816,60275.0,60274.0,0.52721722]
[1728580608976,0.006816,60275.0,60274.0,0.53921722]
[1728580609222,0.002816,60275.0,60274.0,0.37841061]
[1728580609447,0.001816,60275.0,60274.0,0.37841061]
[1728580609658,0.001816,60275.0,60274.0,0.39241061]
[1728580609889,0.001816,60275.0,60274.0,0.37841061]
[1728580610130,0.002816,60275.0,60274.0,0.39341061]
[1728580610557,0.168722,60275.0,60274.0,0.22550161]
[1728580610559,0.168722,60275.0,60274.0,0.04240161]
[1728580610801,0.168722,60275.0,60274.0,0.014]
[1728580610802,0.35537904,60275.0,60274.0,0.014]
[1728580611052,0.35255964,60275.0,60274.0,0.028]
[1728580611710,0.32855964,60275.0,60274.0,0.014]
[1728580611928,0.32855964,60275.0,60274.0,0.028]
[1728580611929,0.32955964,60275.0,60274.0,0.028]
[1728580612385,0.165914,60273.0,60267.0,0.002]
[1728580612615,0.165915,60272.0,60269.0,0.41487019]
[1728580612843,0.165915,60272.0,60270.0,0.01543611]
[1728580613067,0.165915,60272.0,60271.0,0.01543611]
[1728580613497,0.497728,60274.0,60271.0,0.01543611]
[1728580613718,0.165911,60273.0,60272.0,0.01543611]
[1728580613933,0.1697304,60273.0,60272.0,0.01543611]
[1728580614181,0.165928,60267.0,60266.0,0.001632]
[1728580614400,0.165928,60267.0,60266.0,0.0171047]
[1728580614401,0.1697474,60267.0,60266.0,0.0171047]
[1728580615474,0.13233758,60267.0,60266.0,0.0171047]
[1728580615703,0.13233758,60267.0,60266.0,0.0181047]
[1728580616813,0.331829,60272.0,60267.0,0.165926]
[1728580617061,0.006,60273.0,60266.0,0.002632]
[1728580617062,0.165928,60267.0,60266.0,0.002632]
[1728580617277,0.35358504,60267.0,60266.0,0.018131]
[1728580617501,0.34976564,60267.0,60266.0,0.018131]
[1728580618169,0.34976564,60267.0,60266.0,0.017131]
[1728580618387,0.36276564,60267.0,60266.0,0.018131]
[1728580618831,0.36276564,60267.0,60266.0,0.017131]
[1728580618832,0.34976564,60267.0,60266.0,0.017131]
[1728580619272,0.34976564,60267.0,60266.0,0.019131]
[1728580619494,0.188928,60267.0,60266.0,0.019131]
[1728580619718,0.176928,60267.0,60266.0,0.018131]
[1728580620157,0.186928,60267.0,60266.0,0.019131]
[1728580620609,0.176928,60267.0,60266.0,0.018131]
[1728580620834,0.176928,60267.0,60266.0,0.210731]
[1728580621049,0.176928,60267.0,60266.0,0.209731]
[1728580621491,0.187928,60267.0,60266.0,0.209731]
[1728580621735,0.022,60267.0,60266.0,0.209731]
[1728580621995,0.187928,60267.0,60266.0,0.213731]
[1728580622744,0.176928,60267.0,60266.0,0.213731]
[1728580622961,0.021,60267.0,60266.0,0.380662]
[1728580623437,0.011,60267.0,60266.0,0.379662]
[1728580623871,0.011,60267.0,60266.0,0.382662]
[1728580624312,0.011,60267.0,60266.0,0.4971028]
[1728580625023,0.011,60267.0,60266.0,0.522858]
[1728580625248,0.011,60267.0,60266.0,0.520858]
[1728580625482,0.176928,60267.0,60266.0,0.216731]
[1728580625721,0.34158504,60267.0,60266.0,0.024131]
[1728580625946,0.33776564,60267.0,60266.0,0.024131]
[1728580626382,0.32676564,60267.0,60266.0,0.017131]
[1728580626678,0.32676564,60267.0,60266.0,0.002632]
[1728580626897,0.33676564,60267.0,60266.0,0.003632]
[1728580627150,0.33676564,60267.0,60266.0,0.002632]
[1728580627384,0.33676564,60267.0,60266.0,0.001632]
[1728580627824,0.33976564,60267.0,60266.0,0.001632]
[1728580628270,0.34076564,60267.0,60266.0,0.001632]
[1728580628708,0.33976564,60267.0,60266.0,0.001632]
[1728580628926,0.34076564,60267.0,60266.0,0.001632]
[1728580629142,0.33776564,60267.0,60266.0,0.001632]
[1728580630287,0.33876564,60267.0,60266.0,0.001632]
[1728580630828,0.46676564,60267.0,60266.0,0.001632]
[1728580631327,0.46176564,60267.0,60266.0,0.001632]
[1728580631594,0.43876564,60267.0,60266.0,0.001632]
[1728580631843,0.44176564,60267.0,60266.0,0.001632]
[1728580632089,0.280928,60267.0,60266.0,0.001632]
[1728580632475,0.2847474,60267.0,60266.0,0.001632]
[1728580632665,0.180928,60267.0,60266.0,0.001632]
[1728580633431,0.180928,60267.0,60266.0,0.2085144]
[1728580633432,0.015,60267.0,60266.0,0.2085144]
[1728580633872,0.015,60267.0,60266.0,0.0425834]
[1728580634333,0.015,60267.0,60266.0,0.353463]
[1728580634880,0.015816,60267.0,60266.0,0.78077107]
[1728580635099,0.015816,60267.0,60266.0,0.71511796]
[1728580635323,0.015816,60267.0,60266.0,0.69959572]
[1728580635548,0.015816,60267.0,60266.0,0.97522449]
[1728580635756,0.012816,60267.0,60266.0,1.17655005]
[1728580635971,0.165884,60284.0,60272.0,0.002]
[1728580636228,0.58384329,60285.0,60274.0,0.167909]
[1728580636459,0.58384329,60285.0,60274.0,0.18142893]
[1728580636692,0.16589,60281.0,60274.0,0.32615591]
[1728580637130,0.331773,60283.0,60274.0,0.27651365]
[1728580637340,0.3348951,60285.0,60274.0,0.27651365]
[1728580637560,0.165888,60282.0,60274.0,0.27851365]
[1728580637773,0.331789,60280.0,60274.0,0.18142893]
[1728580638007,0.167722,60275.0,60274.0,0.02251993]
[1728580638251,0.167722,60275.0,60274.0,0.007]
[1728580638473,0.168722,60275.0,60274.0,0.007]
[1728580639150,0.168722,60275.0,60274.0,0.005]
[1728580639579,0.166722,60275.0,60274.0,0.004]
[1728580640062,0.000816,60275.0,60267.0,0.0823]
[1728580640284,0.000816,60275.0,60268.0,0.165924]
[1728580640285,0.165914,60272.0,60268.0,0.165924]
[1728580640497,0.165917,60271.0,60268.0,0.165924]
[1728580640704,0.331825,60273.0,60267.0,0.248227]
[1728580640705,0.16592,60270.0,60267.0,0.248227]
[1728580640921,0.331825,60273.0,60267.0,0.21683482]
[1728580640922,0.165913,60273.0,60267.0,0.21683482]
[1728580641143,0.013816,60275.0,60274.0,0.001]
[1728580641370,0.179722,60275.0,60274.0,0.001]
[1728580641587,0.013816,60275.0,60274.0,0.166909]
[1728580641810,0.005816,60275.0,60274.0,0.166909]
[1728580642024,0.011816,60275.0,60274.0,0.001]
[1728580642241,0.005816,60275.0,60274.0,0.001]
[1728580642453,0.000816,60275.0,60274.0,0.165909]
[1728580642658,0.000816,60275.0,60274.0,0.004]
[1728580642917,0.000816,60275.0,60274.0,0.60535719]
[1728580643152,0.000816,60275.0,60274.0,0.59901561]
[1728580643368,0.000816,60275.0,60274.0,0.75985325]
[1728580643589,0.000816,60275.0,60274.0,0.76585325]
[1728580644746,0.000816,60275.0,60274.0,0.76385325]
[1728580645215,0.000816,60275.0,60274.0,0.76585325]
[1728580645435,0.000816,60275.0,60274.0,0.77085325]
[1728580646363,0.000816,60275.0,60274.0,0.76585325]
[1728580646588,0.000816,60275.0,60274.0,0.442209]
[1728580646797,0.000816,60275.0,60274.0,0.2763]
[1728580647237,0.000816,60275.0,60274.0,0.442209]
[1728580647713,0.000816,60275.0,60274.0,0.1945]
[1728580647942,0.000816,60275.0,60274.0,0.008]
[1728580647943,0.166722,60275.0,60274.0,0.008]
[1728580648164,0.176722,60275.0,60274.0,0.008]
[1728580652064,0.010816,60275.0,60274.0,0.008]
[1728580652283,0.176722,60275.0,60274.0,0.008]
[1728580653178,0.010816,60275.0,60274.0,0.008]
[1728580653390,0.176722,60275.0,60274.0,0.008]
[1728580653604,0.1805414,60275.0,60274.0,0.008]
[1728580654285,0.0146354,60275.0,60274.0,0.008]
[1728580654516,0.010816,60275.0,60274.0,0.008]
[1728580654735,0.010816,60275.0,60274.0,0.004]
[1728580654980,0.010816,60275.0,60274.0,0.005]
[1728580655212,0.010816,60275.0,60274.0,0.001]
[1728580655492,0.176722,60275.0,60274.0,0.001]
[1728580655701,0.176722,60275.0,60270.0,0.165917]
[1728580656124,0.010816,60275.0,60274.0,0.173909]
[1728580656618,0.010816,60275.0,60274.0,0.169909]
[1728580656838,0.010816,60275.0,60274.0,0.165909]
[1728580657473,0.010816,60275.0,60273.0,0.16591]
[1728580657682,0.010816,60275.0,60274.0,0.165909]
[1728580658783,0.010816,60275.0,60274.0,0.2820493]
[1728580659002,0.010816,60275.0,60274.0,0.169909]
[1728580659662,0.010816,60275.0,60274.0,0.173909]
[1728580659885,0.010816,60275.0,60274.0,0.46380766]
[1728580660096,0.010816,60275.0,60274.0,0.72498964]
[1728580660310,0.010816,60275.0,60274.0,1.06414689]
[1728580660760,0.010816,60275.0,60274.0,1.16914689]
[1728580660973,0.010816,60275.0,60274.0,1.16514689]
[1728580661198,0.010816,60275.0,60274.0,1.16114689]
[1728580661408,0.010816,60275.0,60274.0,1.21379382]
[1728580661641,0.010816,60275.0,60274.0,1.21679382]
[1728580662002,0.010816,60275.0,60274.0,1.20379382]
[1728580662226,0.012816,60275.0,60274.0,0.464922]
[1728580662693,0.011816,60275.0,60274.0,0.453922]
[1728580662932,0.011816,60275.0,60274.0,0.456922]
[1728580664364,0.011816,60275.0,60274.0,0.74350264]
[1728580664594,0.012816,60275.0,60274.0,0.91230925]
[1728580664833,0.011816,60275.0,60274.0,0.453922]
[1728580665295,0.012816,60275.0,60274.0,0.464922]
[1728580665795,0.011816,60275.0,60274.0,0.453922]
[1728580666032,0.012816,60275.0,60274.0,0.464922]
[1728580666506,0.012816,60275.0,60274.0,0.6111636]
[1728580666732,0.012816,60275.0,60274.0,0.464922]
[1728580666992,0.012816,60275.0,60274.0,0.2025]
[1728580667456,0.012816,60275.0,60274.0,0.38395232]
[1728580667696,0.011816,60275.0,60274.0,0.37595232]
[1728580667927,0.011816,60275.0,60274.0,0.360409]
[1728580668178,0.010816,60275.0,60274.0,0.351409]
[1728580668418,0.010816,60275.0,60274.0,0.1835]
[1728580668644,0.010816,60275.0,60274.0,0.349409]
[1728580668871,0.010816,60275.0,60274.0,0.355409]
[1728580669336,0.010816,60275.0,60274.0,0.353409]
[1728580669794,0.010816,60275.0,60274.0,0.73744759]
[1728580669997,0.010816,60275.0,60274.0,0.5090447]
[1728580670199,0.010816,60275.0,60274.0,0.5110447]
[1728580670629,0.010816,60275.0,60274.0,0.5090447]